fUST/lending_fUST_20250628
["ID","MTS","AMOUNT","RATE_DAILY","PERIOD"]
[368252673,1751074239307,-460.0,0.00019178,2]
[368252674,1751074239316,-273.04735139,0.00019178,2]
[368252675,1751074239325,-460.0,0.00019178,2]
[368252676,1751074239334,-460.669556,0.00019178,2]
[368252677,1751074239343,-460.0,0.00019178,2]
[368252678,1751074239352,-460.0,0.00019178,2]
[368252679,1751074239362,-460.0,0.00019178,2]
[368252680,1751074239371,-533.72,0.00019178,2]
[368252681,1751074239381,-460.0,0.00019178,2]
[368252682,1751074239390,-460.0,0.00019178,2]
[368252683,1751074239399,-460.0,0.00019178,2]
[368252684,1751074239408,-460.0,0.00019178,2]
[368252685,1751074239417,-460.0,0.00019178,2]
[368252686,1751074239426,-460.0,0.00019178,2]
[368252687,1751074239435,-460.0,0.00019178,2]
[368252688,1751074239445,-460.0,0.00019178,2]
[368252689,1751074239454,-460.0,0.00019178,2]
[368252690,1751074239463,-460.0,0.00019178,2]
[368252691,1751074239471,-460.0,0.00019178,2]
[368252692,1751074239480,-460.0,0.00019178,2]
[368252693,1751074239489,-460.0,0.00019178,2]
[368252694,1751074239498,-460.0,0.00019178,2]
[368252695,1751074239507,-382.47588547,0.00019178,2]
[368252696,1751074239517,-460.0,0.00019178,2]
[368252697,1751074239526,-460.0,0.00019178,2]
[368252698,1751074239535,-327.85464959,0.00019178,2]
[368252699,1751074239545,-406.81425443,0.00019178,2]
[368252700,1751074239554,-460.0,0.00019178,2]
[368252701,1751074239563,-460.0,0.00019178,2]
[368252702,1751074239572,-460.0,0.00019178,2]
[368252703,1751074239581,-460.0,0.00019178,2]
[368252704,1751074239590,-460.0,0.00019178,2]
[368252705,1751074239599,-402.63657465,0.00019178,2]
[368252706,1751074239608,-500.0,0.00019178,2]
[368252707,1751074239617,-500.0,0.00019178,2]
[368252708,1751074239626,-500.0,0.00019178,2]
[368252709,1751074239635,-500.0,0.00019178,2]
[368252710,1751074239645,-460.0,0.00019178,2]
[368252711,1751074239656,-364.89427182,0.00019178,2]
[368252712,1751074239666,-460.0,0.00019178,2]
[368252713,1751074239675,-460.0,0.00019178,2]
[368252714,1751074239684,-432.64413515,0.00019178,2]
[368252715,1751074239693,-460.0,0.00019178,2]
[368252716,1751074239704,-460.0,0.00019178,2]
[368252717,1751074239713,-460.0,0.00019178,2]
[368252718,1751074239722,-460.0,0.00019178,2]
[368252719,1751074239732,-460.0,0.00019178,2]
[368252720,1751074239741,-190.79176551,0.00019178,2]
[368252721,1751074239751,-460.0,0.00019178,2]
[368252722,1751074239760,-402.06632872,0.00019178,2]
[368252723,1751074239769,-500.0,0.00019178,2]
[368252724,1751074239779,-500.0,0.00019178,2]
[368252725,1751074239788,-460.0,0.00019178,2]
[368252726,1751074239798,-460.96490064,0.00019178,2]
[368252727,1751074239807,-503.11875434,0.00019178,2]
[368252728,1751074239816,-460.0,0.00019178,2]
[368252729,1751074239825,-460.0,0.00019178,2]
[368252730,1751074239834,-460.0,0.00019178,2]
[368252731,1751074239843,-460.0,0.00019178,2]
[368252732,1751074239852,-460.0,0.00019178,2]
[368252733,1751074239861,-460.0,0.00019178,2]
[368252734,1751074239871,-401.99029895,0.00019178,2]
[368252735,1751074239880,-162.44540029,0.00019178,2]
[368252736,1751074239890,-460.0,0.00019178,2]
[368252737,1751074239899,-460.0,0.00019178,2]
[368252738,1751074239909,-460.0,0.00019178,2]
[368252739,1751074239924,-460.0,0.00019178,2]
[368252740,1751074239935,-460.0,0.00019178,2]
[368252741,1751074239944,-460.0,0.00019178,2]
[368252742,1751074239953,-376.1600341,0.00019178,2]
[368252743,1751074239962,-460.0,0.00019178,2]
[368252744,1751074239971,-460.0,0.00019178,2]
[368252745,1751074239981,-460.0,0.00019178,2]
[368252746,1751074239990,-261.7087692,0.00019178,2]
[368252747,1751074239999,-460.0,0.00019178,2]
[368252748,1751074240007,-460.0,0.00019178,2]
[368252749,1751074240017,-460.0,0.00019178,2]
[368252750,1751074240026,-460.0,0.00019178,2]
[368252751,1751074240040,-460.0,0.00019178,2]
[368252752,1751074240049,-460.0,0.00019178,2]
[368252753,1751074240058,-460.0,0.00019178,2]
[368252754,1751074240067,-460.0,0.00019178,2]
[368252755,1751074240077,-460.0,0.00019178,2]
[368252756,1751074240086,-460.0,0.00019178,2]
[368252757,1751074240095,-460.0,0.00019178,2]
[368252758,1751074240104,-460.0,0.00019178,2]
[368252759,1751074240114,-460.0,0.00019178,2]
[368252760,1751074240124,-460.0,0.00019178,2]
[368252761,1751074240133,-460.0,0.00019178,2]
[368252762,1751074240143,-460.0,0.00019178,2]
[368252763,1751074240153,-460.0,0.00019178,2]
[368252764,1751074240162,-460.0,0.00019178,2]
[368252765,1751074240171,-500.0,0.00019178,2]
[368252766,1751074240180,-460.0,0.00019178,2]
[368252767,1751074240190,-460.0,0.00019178,2]
[368252768,1751074240199,-460.0,0.00019178,2]
[368252769,1751074240208,-460.0,0.00019178,2]
[368252770,1751074240217,-460.0,0.00019178,2]
[368252771,1751074240227,-460.0,0.00019178,2]
[368252772,1751074240236,-460.0,0.00019178,2]
[368252773,1751074240245,-460.0,0.00019178,2]
[368252774,1751074240255,-460.0,0.00019178,2]
[368252775,1751074240264,-460.0,0.00019178,2]
[368252776,1751074240273,-460.0,0.00019178,2]
[368252777,1751074240282,-460.0,0.00019178,2]
[368252778,1751074240295,-460.0,0.00019178,2]
[368252779,1751074240305,-460.0,0.00019178,2]
[368252780,1751074240315,-460.0,0.00019178,2]
[368252781,1751074240325,-460.0,0.00019178,2]
[368252782,1751074240334,-578.61,0.00019178,2]
[368252783,1751074240343,-460.0,0.00019178,2]
[368252784,1751074240353,-460.0,0.00019178,2]
[368252785,1751074240362,-460.0,0.00019178,2]
[368252786,1751074240372,-460.0,0.00019178,2]
[368252787,1751074240381,-460.0,0.00019178,2]
[368252788,1751074240390,-460.0,0.00019178,2]
[368252789,1751074240399,-460.0,0.00019178,2]
[368252790,1751074240408,-410.0,0.00019178,2]
[368252791,1751074240417,-483.80347649,0.00019178,2]
[368252792,1751074240426,-460.0,0.00019178,2]
[368252793,1751074240435,-460.0,0.00019178,2]
[368252794,1751074240568,-207.56929307,0.00019178,2]
[368252795,1751074240578,-460.0,0.00019178,2]
[368252796,1751074240587,-460.0,0.00019178,2]
[368252797,1751074240596,-460.0,0.00019178,2]
[368252798,1751074240606,-460.0,0.00019178,2]
[368252799,1751074240615,-460.0,0.00019178,2]
[368252800,1751074240625,-460.5369321,0.00019178,2]
[368252801,1751074240635,-460.0,0.00019178,2]
[368252802,1751074240645,-460.0,0.00019178,2]
[368252803,1751074240659,-460.0,0.00019178,2]
[368252804,1751074240668,-433.23209256,0.00019178,2]
[368252805,1751074240678,-460.0,0.00019178,2]
[368252806,1751074240687,-460.0,0.00019178,2]
[368252807,1751074240698,-460.0,0.00019178,2]
[368252808,1751074240707,-499.78424326,0.00019178,2]
[368252809,1751074240717,-460.0,0.00019178,2]
[368252810,1751074240727,-460.0,0.00019178,2]
[368252811,1751074240736,-460.0,0.00019178,2]
[368252812,1751074240745,-460.0,0.00019178,2]
[368252813,1751074240755,-460.0,0.00019178,2]
[368252814,1751074240764,-460.0,0.00019178,2]
[368252815,1751074240774,-460.0,0.00019178,2]
[368252816,1751074240784,-1404.09,0.00019178,2]
[368252817,1751074240795,-500.0,0.00019178,2]
[368252818,1751074240804,-500.0,0.00019178,2]
[368252819,1751074240813,-460.0,0.00019178,2]
[368252820,1751074240823,-460.0,0.00019178,2]
[368252821,1751074240832,-460.0,0.00019178,2]
[368252822,1751074240841,-460.0,0.00019178,2]
[368252823,1751074240851,-460.0,0.00019178,2]
[368252824,1751074240860,-460.0,0.00019178,2]
[368252825,1751074240870,-460.0,0.00019178,2]
[368252826,1751074240882,-460.0,0.00019178,2]
[368252827,1751074240891,-460.0,0.00019178,2]
[368252828,1751074240900,-460.0,0.00019178,2]
[368252829,1751074240910,-490.27,0.00019178,2]
[368252830,1751074240919,-460.0,0.00019178,2]
[368252831,1751074240929,-475.45,0.00019178,2]
[368252832,1751074240938,-460.0,0.00019178,2]
[368252833,1751074240947,-460.0,0.00019178,2]
[368252834,1751074240956,-460.0,0.00019178,2]
[368252835,1751074240966,-425.45391066,0.00019178,2]
[368252836,1751074240975,-460.0,0.00019178,2]
[368252837,1751074240984,-1798.01,0.00019178,2]
[368252838,1751074240993,-460.0,0.00019178,2]
[368252839,1751074241003,-2515.57,0.00019178,2]
[368252840,1751074241012,-460.0,0.00019178,2]
[368252841,1751074241023,-460.0,0.00019178,2]
[368252842,1751074241033,-460.0,0.00019178,2]
[368252843,1751074241043,-460.0,0.00019178,2]
[368252844,1751074241053,-460.0,0.00019178,2]
[368252845,1751074241062,-460.4540534,0.00019178,2]
[368252846,1751074241072,-460.0,0.00019178,2]
[368252847,1751074241081,-460.0,0.00019178,2]
[368252848,1751074241090,-460.0,0.00019178,2]
[368252849,1751074241100,-1682.5,0.00019178,2]
[368252850,1751074241109,-460.0,0.00019178,2]
[368252851,1751074241118,-460.0,0.00019178,2]
[368252852,1751074241128,-460.0,0.00019178,2]
[368252853,1751074241137,-523.2,0.00019178,2]
[368252854,1751074241146,-460.0,0.00019178,2]
[368252855,1751074241155,-460.0,0.00019178,2]
[368252856,1751074241164,-460.0,0.00019178,2]
[368252857,1751074241174,-460.0,0.00019178,2]
[368252858,1751074241183,-677.74,0.00019178,2]
[368252859,1751074241192,-1457.44,0.00019178,2]
[368252860,1751074241202,-460.0,0.00019178,2]
[368252861,1751074241212,-460.0,0.00019178,2]
[368252862,1751074241221,-460.0,0.00019178,2]
[368252863,1751074241230,-500.0,0.00019178,2]
[368252864,1751074241239,-460.0,0.00019178,2]
[368252865,1751074241249,-460.0,0.00019178,2]
[368252866,1751074241258,-1853.18,0.00019178,2]
[368252867,1751074241268,-460.0,0.00019178,2]
[368252868,1751074241277,-460.0,0.00019178,2]
[368252869,1751074241286,-460.0,0.00019178,2]
[368252870,1751074241295,-485.30297537,0.00019178,2]
[368252871,1751074241304,-170.02896368,0.00019178,2]
[368252872,1751074241315,-460.0,0.00019178,2]
[368252873,1751074241324,-460.0,0.00019178,2]
[368252874,1751074241333,-460.0,0.00019178,2]
[368252875,1751074241342,-460.0,0.00019178,2]
[368252876,1751074241351,-923.83,0.00019178,2]
[368252877,1751074241361,-460.0,0.00019178,2]
[368252878,1751074241378,-769.64,0.00019178,2]
[368252879,1751074241387,-460.0,0.00019178,2]
[368252880,1751074241398,-460.0,0.00019178,2]
[368252881,1751074241407,-460.0,0.00019178,2]
[368252882,1751074241416,-460.0,0.00019178,2]
[368252883,1751074241425,-1007.79,0.00019178,2]
[368252884,1751074241435,-460.0,0.00019178,2]
[368252885,1751074241445,-460.0,0.00019178,2]
[368252886,1751074241456,-610.28,0.00019178,2]
[368252887,1751074241466,-460.0,0.00019178,2]
[368252888,1751074241475,-539.02,0.00019178,2]
[368252889,1751074241486,-460.0,0.00019178,2]
[368252890,1751074241495,-1349.39,0.00019178,2]
[368252891,1751074241505,-460.0,0.00019178,2]
[368252892,1751074241514,-460.0,0.00019178,2]
[368252893,1751074241524,-460.0,0.00019178,2]
[368252894,1751074241534,-460.0,0.00019178,2]
[368252895,1751074241543,-460.0,0.00019178,2]
[368252896,1751074241552,-460.0,0.00019178,2]
[368252897,1751074241562,-460.0,0.00019178,2]
[368252898,1751074241572,-575.92,0.00019178,2]
[368252899,1751074241581,-460.0,0.00019178,2]
[368252900,1751074241591,-396.47514336,0.00019178,2]
[368252901,1751074241600,-460.0,0.00019178,2]
[368252902,1751074241610,-460.0,0.00019178,2]
[368252903,1751074241619,-460.0,0.00019178,2]
[368252904,1751074241628,-460.0,0.00019178,2]
[368252905,1751074241638,-460.0,0.00019178,2]
[368252906,1751074241648,-677.53,0.00019178,2]
[368252907,1751074241662,-460.0,0.00019178,2]
[368252908,1751074241671,-1208.23,0.00019178,2]
[368252909,1751074241681,-460.0,0.00019178,2]
[368252910,1751074241690,-460.0,0.00019178,2]
[368252911,1751074241700,-398.90736244,0.00019178,2]
[368252912,1751074241710,-1027.71,0.00019178,2]
[368252913,1751074241719,-460.0,0.00019178,2]
[368252914,1751074241730,-1655.11,0.00019178,2]
[368252915,1751074241739,-620.37,0.00019178,2]
[368252916,1751074241748,-460.0,0.00019178,2]
[368252917,1751074241757,-153.87833638,0.00019178,2]
[368252918,1751074241767,-476.0546269,0.00019178,2]
[368252919,1751074241775,-460.49002644,0.00019178,2]
[368252920,1751074241784,-462.07079895,0.00019178,2]
[368252921,1751074241794,-460.0,0.00019178,2]
[368252922,1751074241803,-2151.56,0.00019178,2]
[368252923,1751074241812,-468.02935916,0.00019178,2]
[368252924,1751074241822,-460.0,0.00019178,2]
[368252925,1751074241831,-339.85903478,0.00019297,2]
[368252926,1751074241840,-500.0,0.00019451,2]
[368252927,1751074241850,-173.57,0.00019451,2]
[368252928,1751074241859,-525.79485193,0.00019451,2]
[368252929,1751074241868,-460.0,0.00019452,2]
[368252930,1751074241877,-460.0,0.00019452,2]
[368252931,1751074241887,-460.0,0.00019452,2]
[368252932,1751074241896,-460.0,0.00019452,2]
[368252933,1751074241906,-460.0,0.00019452,2]
[368252934,1751074241915,-460.0,0.00019452,2]
[368252935,1751074241924,-460.0,0.00019452,2]
[368252936,1751074241934,-460.0,0.00019452,2]
[368252937,1751074241943,-460.0,0.00019452,2]
[368252938,1751074241952,-460.0,0.00019452,2]
[368252939,1751074241961,-460.0,0.00019452,2]
[368252940,1751074241971,-460.0,0.00019452,2]
[368252941,1751074241981,-250.82848943,0.00019452,2]
[368252942,1751074241990,-460.0,0.00019452,2]
[368252943,1751074242000,-460.0,0.00019452,2]
[368252944,1751074242009,-460.0,0.00019452,2]
[368252945,1751074242020,-460.0,0.00019452,2]
[368252946,1751074242030,-206.83702132,0.00019452,2]
[368252947,1751074242039,-460.0,0.00019452,2]
[368252948,1751074242048,-460.0,0.00019452,2]
[368252949,1751074242057,-548.91943321,0.00019452,2]
[368252950,1751074242066,-460.0,0.00019452,2]
[368252951,1751074242076,-460.0,0.00019452,2]
[368252952,1751074242085,-464.44589036,0.00019452,2]
[368252953,1751074242100,-463.61517584,0.00019452,2]
[368252954,1751074242109,-460.0,0.00019452,2]
[368252955,1751074242119,-462.30613074,0.00019452,2]
[368252956,1751074242129,-460.0,0.00019452,2]
[368252957,1751074242138,-460.0,0.00019452,2]
[368252958,1751074242148,-460.0,0.00019452,2]
[368252959,1751074242157,-460.0,0.00019452,2]
[368252960,1751074242167,-460.0,0.00019452,2]
[368252961,1751074242176,-533.72,0.00019452,2]
[368252962,1751074242185,-411.44467223,0.00019452,2]
[368252963,1751074242195,-478.60775783,0.00019452,2]
[368252964,1751074242204,-460.0,0.00019452,2]
[368252965,1751074242213,-460.0,0.00019452,2]
[368252966,1751074242222,-534.35,0.00019452,2]
[368252967,1751074242231,-460.0,0.00019452,2]
[368252968,1751074242240,-460.0,0.00019452,2]
[368252969,1751074242250,-440.0,0.00019452,2]
[368252970,1751074242260,-255.24,0.00019452,2]
[368252971,1751074242271,-460.0,0.00019452,2]
[368252972,1751074242280,-491.33099807,0.00019452,2]
[368252973,1751074242289,-314.65,0.00019452,2]
[368252974,1751074242299,-460.0,0.00019452,2]
[368252975,1751074242308,-460.0,0.00019452,2]
[368252976,1751074242318,-460.0,0.00019452,2]
[368252977,1751074242328,-460.0,0.00019452,2]
[368252978,1751074242338,-460.0,0.00019452,2]
[368252979,1751074242347,-460.0,0.00019452,2]
[368252980,1751074242357,-460.0,0.00019452,2]
[368252981,1751074242366,-460.0,0.00019452,2]
[368252982,1751074242375,-460.0,0.00019452,2]
[368252983,1751074242385,-460.0,0.00019452,2]
[368252984,1751074242394,-155.6379571,0.00019452,2]
[368252985,1751074242403,-460.0,0.00019452,2]
[368252986,1751074242412,-460.0,0.00019452,2]
[368252987,1751074242421,-460.0,0.00019452,2]
[368252988,1751074242431,-460.0,0.00019452,2]
[368252989,1751074242440,-460.0,0.00019452,2]
[368252990,1751074242450,-460.0,0.00019452,2]
[368252991,1751074242459,-460.0,0.00019452,2]
[368252992,1751074242468,-460.0,0.00019452,2]
[368252993,1751074242478,-1404.09,0.00019452,2]
[368252994,1751074242487,-514.19,0.00019452,2]
[368252995,1751074242499,-460.0,0.00019452,2]
[368252996,1751074242509,-460.0,0.00019452,2]
[368252997,1751074242520,-460.0,0.00019452,2]
[368252998,1751074242529,-460.0,0.00019452,2]
[368252999,1751074242538,-460.0,0.00019452,2]
[368253000,1751074242547,-490.27,0.00019452,2]
[368253001,1751074242556,-460.0,0.00019452,2]
[368253002,1751074242565,-475.45,0.00019452,2]
[368253003,1751074242574,-237.53,0.00019452,2]
[368253004,1751074242583,-460.0,0.00019452,2]
[368253005,1751074242592,-1798.01,0.00019452,2]
[368253006,1751074242601,-460.0,0.00019452,2]
[368253007,1751074242611,-2515.57,0.00019452,2]
[368253008,1751074242620,-460.0,0.00019452,2]
[368253009,1751074242629,-460.0,0.00019452,2]
[368253010,1751074242638,-460.0,0.00019452,2]
[368253011,1751074242647,-460.0,0.00019452,2]
[368253012,1751074242660,-460.0,0.00019452,2]
[368253013,1751074242669,-1682.5,0.00019452,2]
[368253014,1751074242678,-460.0,0.00019452,2]
[368253015,1751074242687,-460.0,0.00019452,2]
[368253016,1751074242698,-523.2,0.00019452,2]
[368253017,1751074242707,-677.74,0.00019452,2]
[368253018,1751074242716,-1457.44,0.00019452,2]
[368253019,1751074242725,-460.0,0.00019452,2]
[368253020,1751074242736,-502.07,0.00019452,2]
[368253021,1751074242745,-1853.18,0.00019452,2]
[368253022,1751074242754,-460.0,0.00019452,2]
[368253023,1751074242764,-460.0,0.00019452,2]
[368253024,1751074242774,-460.0,0.00019452,2]
[368253025,1751074242783,-460.0,0.00019452,2]
[368253026,1751074242792,-923.83,0.00019452,2]
[368253027,1751074242802,-769.64,0.00019452,2]
[368253028,1751074242812,-460.0,0.00019452,2]
[368253029,1751074242821,-460.0,0.00019452,2]
[368253030,1751074242830,-1007.79,0.00019452,2]
[368253031,1751074242840,-610.28,0.00019452,2]
[368253032,1751074242849,-1349.39,0.00019452,2]
[368253033,1751074242858,-460.0,0.00019452,2]
[368253034,1751074242867,-460.0,0.00019452,2]
[368253035,1751074242877,-460.0,0.00019452,2]
[368253036,1751074242886,-460.0,0.00019452,2]
[368253037,1751074242895,-575.92,0.00019452,2]
[368253038,1751074242904,-460.0,0.00019452,2]
[368253039,1751074242914,-460.0,0.00019452,2]
[368253040,1751074242923,-460.0,0.00019452,2]
[368253041,1751074242932,-460.0,0.00019452,2]
[368253042,1751074242941,-460.0,0.00019452,2]
[368253043,1751074242950,-677.53,0.00019452,2]
[368253044,1751074242959,-1208.23,0.00019452,2]
[368253045,1751074242967,-460.0,0.00019452,2]
[368253046,1751074242976,-460.0,0.00019452,2]
[368253047,1751074242985,-1027.71,0.00019452,2]
[368253048,1751074242995,-460.0,0.00019452,2]
[368253049,1751074243005,-1655.11,0.00019452,2]
[368253050,1751074243015,-620.37,0.00019452,2]
[368253051,1751074243024,-460.0,0.00019452,2]
[368253052,1751074243034,-2151.56,0.00019452,2]
[368253053,1751074243043,-460.0,0.00019452,2]
[368253054,1751074243052,-511.20682269,0.00019452,2]
[368253055,1751074243062,-1145.43470474,0.00019626,2]
[368253056,1751074243071,-13392.7343875,0.00019626,2]
[368253057,1751074243080,-179.57827425,0.00019643,2]
[368253058,1751074243090,-500.0,0.00019721,2]
[368253059,1751074243100,-500.0,0.00019725,2]
[368253060,1751074243109,-403.27675963,0.00019725,2]
[368253061,1751074243118,-460.0,0.00019726,2]
[368253062,1751074243128,-460.0,0.00019726,2]
[368253063,1751074243138,-360.0,0.00019726,2]
[368253064,1751074243148,-460.0,0.00019726,2]
[368253065,1751074243158,-460.0,0.00019726,2]
[368253066,1751074243167,-460.0,0.00019726,2]
[368253067,1751074243177,-460.0,0.00019726,2]
[368253068,1751074243187,-270.14,0.00019726,2]
[368253069,1751074243196,-220.03353689,0.00019726,2]
[368253070,1751074243207,-460.0,0.00019726,2]
[368253071,1751074243216,-460.0,0.00019726,2]
[368253072,1751074243225,-460.0,0.00019726,2]
[368253073,1751074243235,-460.0,0.00019726,2]
[368253074,1751074243244,-460.0,0.00019726,2]
[368253075,1751074243254,-460.0,0.00019726,2]
[368253076,1751074243263,-460.0,0.00019726,2]
[368253077,1751074243273,-460.0,0.00019726,2]
[368253078,1751074243283,-460.0,0.00019726,2]
[368253079,1751074243292,-460.0,0.00019726,2]
[368253080,1751074243301,-460.0,0.00019726,2]
[368253081,1751074243311,-183.3,0.00019726,2]
[368253082,1751074243320,-533.72,0.00019726,2]
[368253083,1751074243330,-460.0,0.00019726,2]
[368253084,1751074243339,-460.0,0.00019726,2]
[368253085,1751074243348,-460.0,0.00019726,2]
[368253086,1751074243357,-460.0,0.00019726,2]
[368253087,1751074243366,-460.0,0.00019726,2]
[368253088,1751074243375,-460.0,0.00019726,2]
[368253089,1751074243386,-460.0,0.00019726,2]
[368253090,1751074243395,-460.0,0.00019726,2]
[368253091,1751074243404,-460.0,0.00019726,2]
[368253092,1751074243414,-460.0,0.00019726,2]
[368253093,1751074243424,-460.0,0.00019726,2]
[368253094,1751074243433,-460.0,0.00019726,2]
[368253095,1751074243442,-291.23006975,0.00019726,2]
[368253096,1751074243451,-460.0,0.00019726,2]
[368253097,1751074243460,-460.0,0.00019726,2]
[368253098,1751074243470,-460.0,0.00019726,2]
[368253099,1751074243479,-1404.09,0.00019726,2]
[368253100,1751074243488,-460.0,0.00019726,2]
[368253101,1751074243499,-280.82,0.00019726,2]
[368253102,1751074243508,-460.0,0.00019726,2]
[368253103,1751074243519,-460.0,0.00019726,2]
[368253104,1751074243528,-490.27,0.00019726,2]
[368253105,1751074243537,-460.0,0.00019726,2]
[368253106,1751074243546,-475.45,0.00019726,2]
[368253107,1751074243556,-460.0,0.00019726,2]
[368253108,1751074243565,-1798.01,0.00019726,2]
[368253109,1751074243575,-185.96,0.00019726,2]
[368253110,1751074243584,-2515.57,0.00019726,2]
[368253111,1751074243712,-460.0,0.00019726,2]
[368253112,1751074243723,-460.0,0.00019726,2]
[368253113,1751074243734,-460.0,0.00019726,2]
[368253114,1751074243744,-1682.5,0.00019726,2]
[368253115,1751074243754,-460.0,0.00019726,2]
[368253116,1751074243763,-523.2,0.00019726,2]
[368253117,1751074243773,-677.74,0.00019726,2]
[368253118,1751074243783,-1457.44,0.00019726,2]
[368253119,1751074243793,-1853.18,0.00019726,2]
[368253120,1751074243802,-460.0,0.00019726,2]
[368253121,1751074243812,-460.0,0.00019726,2]
[368253122,1751074243821,-923.83,0.00019726,2]
[368253123,1751074243831,-769.64,0.00019726,2]
[368253124,1751074243840,-460.0,0.00019726,2]
[368253125,1751074243849,-460.0,0.00019726,2]
[368253126,1751074243859,-1007.79,0.00019726,2]
[368253127,1751074243868,-610.28,0.00019726,2]
[368253128,1751074243877,-1349.39,0.00019726,2]
[368253129,1751074243886,-460.0,0.00019726,2]
[368253130,1751074243895,-460.0,0.00019726,2]
[368253131,1751074243905,-460.0,0.00019726,2]
[368253132,1751074243914,-575.92,0.00019726,2]
[368253133,1751074243923,-460.0,0.00019726,2]
[368253134,1751074243932,-460.0,0.00019726,2]
[368253135,1751074243942,-460.0,0.00019726,2]
[368253136,1751074243952,-460.0,0.00019726,2]
[368253137,1751074243961,-677.53,0.00019726,2]
[368253138,1751074243971,-1208.23,0.00019726,2]
[368253139,1751074243981,-460.0,0.00019726,2]
[368253140,1751074243990,-460.0,0.00019726,2]
[368253141,1751074243999,-1027.71,0.00019726,2]
[368253142,1751074244009,-460.0,0.00019726,2]
[368253143,1751074244020,-1655.11,0.00019726,2]
[368253144,1751074244029,-620.37,0.00019726,2]
[368253145,1751074244038,-460.0,0.00019726,2]
[368253146,1751074244048,-2151.56,0.00019726,2]
[368253147,1751074244057,-460.0,0.00019726,2]
[368253148,1751074244067,-500.0,0.0001994,2]
[368253149,1751074244076,-500.0,0.00019999,2]
[368253150,1751074244085,-460.0,0.0002,2]
[368253151,1751074244095,-460.0,0.0002,2]
[368253152,1751074244104,-460.0,0.0002,2]
[368253153,1751074244113,-460.0,0.0002,2]
[368253154,1751074244122,-460.0,0.0002,2]
[368253155,1751074244131,-460.0,0.0002,2]
[368253156,1751074244141,-162.45,0.0002,2]
[368253157,1751074244151,-446.18024661,0.0002,2]
[368253158,1751074244160,-460.0,0.0002,2]
[368253159,1751074244169,-460.0,0.0002,2]
[368253160,1751074244179,-428.18,0.0002,2]
[368253161,1751074244188,-533.72,0.0002,2]
[368253162,1751074244198,-460.0,0.0002,2]
[368253163,1751074244207,-460.0,0.0002,2]
[368253164,1751074244216,-460.0,0.0002,2]
[368253165,1751074244225,-460.0,0.0002,2]
[368253166,1751074244234,-460.0,0.0002,2]
[368253167,1751074244243,-460.0,0.0002,2]
[368253168,1751074244253,-460.0,0.0002,2]
[368253169,1751074244262,-460.0,0.0002,2]
[368253170,1751074244272,-460.0,0.0002,2]
[368253171,1751074244281,-460.0,0.0002,2]
[368253172,1751074244290,-1404.09,0.0002,2]